[Event "The Schackveckan 2023: Göteborg open"]
[Site "Göteborgs schackcentrum, Vegagatan 20, Gothenburg, Sweden"]
[Date "2023.08.13"]
[Round "7.14"]
[White "Svensson, Leif"]
[Black "Pintaric, Felix"]
[Result "1-0"]
[TimeControl "15 minutes + 5 seconds per move from move one (Round 1 - 4) / 90 minutes + 30 seconds per move from move one (Round 5 - 8)"]
[WhiteFideId "1702459"]
[BlackFideId "1776096"]
[WhiteElo "2038"]
[BlackElo "1483"]

1. d4 {[%clk 01:30:05]} {[%emt 00:00:54]} Nf6 {[%clk 01:30:57]} {[%emt
00:00:03]} 2. Nc3 {[%clk 01:30:28]} {[%emt 00:00:07]} d5 {[%clk 01:30:55]}
{[%emt 00:00:32]} 3. Bf4 {[%clk 01:30:52]} {[%emt 00:00:06]} e6 {[%clk
01:31:20]} {[%emt 00:00:06]} 4. e3 {[%clk 01:31:18]} {[%emt 00:00:04]} Bb4
{[%clk 01:31:43]} {[%emt 00:00:07]} 5. Bd3 {[%clk 01:31:31]} {[%emt 00:00:17]}
c5 {[%clk 01:32:02]} {[%emt 00:00:11]} 6. dxc5 {[%clk 01:31:44]} {[%emt
00:00:17]} Nc6 {[%clk 01:32:02]} {[%emt 00:00:29]} 7. Nge2 {[%clk 01:31:25]}
{[%emt 00:00:49]} a6 {[%clk 01:30:40]} {[%emt 00:01:53]} 8. a3 {[%clk
01:30:57]} {[%emt 00:00:58]} Bxc5 {[%clk 01:30:36]} {[%emt 00:00:33]} 9. Ng3
{[%clk 01:28:18]} {[%emt 00:03:09]} O-O {[%clk 01:28:43]} {[%emt 00:02:23]} 10.
O-O {[%clk 01:26:03]} {[%emt 00:02:45]} h6 {[%clk 01:28:23]} {[%emt 00:00:50]}
11. e4 {[%clk 01:22:51]} {[%emt 00:03:42]} d4 {[%clk 01:25:49]} {[%emt
00:03:05]} 12. Nce2 {[%clk 01:19:37]} {[%emt 00:03:44]} e5 {[%clk 01:24:03]}
{[%emt 00:02:16]} 13. Bc1 {[%clk 01:19:24]} {[%emt 00:00:42]} Re8 {[%clk
01:22:38]} {[%emt 00:01:55]} 14. f4 {[%emt 00:01:01]} Ng4 {[%clk 01:17:21]}
{[%emt 00:05:45]} 15. f5 {[%clk 01:12:46]} {[%emt 00:06:40]} b5 {[%clk
01:15:17]} {[%emt 00:02:33]} 16. Rf3 {[%clk 01:10:44]} {[%emt 00:02:31]} Qh4
{[%clk 01:11:23]} {[%emt 00:04:25]} 17. h3 {[%clk 01:10:06]} {[%emt 00:01:08]}
Ne3 {[%clk 01:11:35]} {[%emt 00:00:18]} 18. Qe1 {[%clk 01:05:52]} {[%emt
00:04:44]} Nxf5 {[%clk 01:05:02]} {[%emt 00:07:03]} 19. exf5 {[%clk 01:05:49]}
{[%emt 00:00:33]} e4 {[%clk 01:04:54]} {[%emt 00:00:38]} 20. Rf4 {[%clk
01:05:50]} {[%emt 00:00:29]} exd3 {[%clk 01:01:51]} {[%emt 00:03:33]} 21. Rxh4
{[%clk 01:05:59]} {[%emt 00:00:21]} dxe2 {[%clk 01:01:56]} {[%emt 00:00:25]} 22.
Re4 {[%clk 01:05:29]} {[%emt 00:01:00]} Bxf5 {[%clk 01:01:55]} {[%emt
00:00:32]} 23. Rxe8+ {[%clk 01:05:47]} Rxe8 {[%clk 01:02:24]} 24. Nxf5 {[%clk
01:06:06]} {[%emt 00:00:12]} d3+ {[%clk 01:02:34]} {[%emt 00:00:20]} 25. Kh1
{[%clk 01:05:28]} {[%emt 00:01:09]} g6 {[%clk 01:02:49]} {[%emt 00:00:15]} 26.
Nxh6+ {[%clk 01:05:37]} {[%emt 00:00:20]} Kg7 {[%clk 01:03:12]} {[%emt
00:00:07]} 27. cxd3 {[%clk 01:04:53]} {[%emt 00:01:14]} Nd4 {[%clk 01:03:23]}
{[%emt 00:00:19]} 28. Bd2 {[%clk 01:04:53]} {[%emt 00:00:29]} Nc2 {[%clk
01:03:17]} {[%emt 00:00:37]} 29. Qc1 {[%clk 01:05:10]} {[%emt 00:00:10]} e1=Q+
{[%clk 01:03:17]} {[%emt 00:00:33]} 30. Bxe1 {[%clk 01:05:31]} {[%emt
00:00:10]} Rxe1+ {[%clk 01:03:39]} {[%emt 00:00:08]} 31. Qxe1 {[%clk 01:05:56]}
{[%emt 00:00:04]} Nxe1 {[%clk 01:04:00]} {[%emt 00:00:09]} 32. Rxe1 {[%clk
01:06:19]} {[%emt 00:00:07]} Kxh6 {[%clk 01:04:27]} {[%emt 00:00:04]} 33. Re4
{[%clk 01:06:05]} {[%emt 00:00:42]} Kg7 {[%clk 01:03:51]} {[%emt 00:01:07]} 34.
g4 {[%clk 01:06:27]} {[%emt 00:00:08]} 1-0

[Event "The Schackveckan 2023: Göteborg open"]
[Site "Göteborgs schackcentrum, Vegagatan 20, Gothenburg, Sweden"]
[Date "2023.08.13"]
[Round "7.15"]
[White "Havner, Arvid"]
[Black "Wennerlund, Elias"]
[Result "1-0"]
[TimeControl "15 minutes + 5 seconds per move from move one (Round 1 - 4) / 90 minutes + 30 seconds per move from move one (Round 5 - 8)"]
[WhiteFideId "1769308"]
[BlackFideId "1742353"]
[WhiteElo "1825"]
[BlackElo "1710"]

1. e4 {[%clk 01:30:59]} Nf6 {[%clk 01:30:48]} {[%emt 00:00:11]} 2. e5 {[%clk
01:30:47]} {[%emt 00:00:44]} Nd5 {[%clk 01:31:09]} {[%emt 00:00:08]} 3. d4
{[%clk 01:31:10]} {[%emt 00:00:07]} d6 {[%clk 01:31:34]} {[%emt 00:00:05]} 4.
c4 {[%clk 01:31:33]} {[%emt 00:00:07]} Nb6 {[%clk 01:31:59]} {[%emt 00:00:05]}
5. f4 {[%clk 01:31:15]} {[%emt 00:00:49]} dxe5 {[%clk 01:32:24]} {[%emt
00:00:05]} 6. fxe5 {[%clk 01:31:43]} {[%emt 00:00:02]} c5 {[%clk 01:32:46]}
{[%emt 00:00:08]} 7. d5 {[%clk 01:30:31]} {[%emt 00:01:41]} g6 {[%clk
01:33:08]} {[%emt 00:00:08]} 8. Nf3 {[%clk 01:27:29]} {[%emt 00:03:32]} Bg4
{[%clk 01:33:31]} {[%emt 00:00:08]} 9. h3 {[%clk 01:25:37]} {[%emt 00:02:22]}
Bxf3 {[%clk 01:33:54]} {[%emt 00:00:07]} 10. Qxf3 {[%clk 01:26:05]} {[%emt
00:00:02]} Bg7 {[%clk 01:34:01]} {[%emt 00:00:23]} 11. e6 {[%clk 01:21:45]}
{[%emt 00:04:49]} O-O {[%clk 01:29:23]} {[%emt 00:05:08]} 12. Qe3 {[%clk
01:17:29]} {[%emt 00:04:45]} Qc8 {[%clk 01:16:54]} {[%emt 00:12:59]} 13. exf7+
{[%clk 01:10:41]} {[%emt 00:07:19]} Rxf7 {[%clk 01:16:52]} {[%emt 00:00:31]} 14.
Be2 {[%clk 01:10:32]} {[%emt 00:00:40]} Bd4 {[%clk 01:12:21]} {[%emt 00:05:01]}
15. Qb3 {[%clk 01:07:21]} {[%emt 00:03:41]} Bf2+ {[%clk 00:48:25]} {[%emt
00:24:26]} 16. Kd1 {[%clk 01:06:27]} {[%emt 00:01:23]} h5 {[%clk 00:34:16]}
{[%emt 00:14:41]} 17. Be3 {[%clk 01:02:35]} {[%emt 00:04:21]} Qf8 {[%clk
00:28:11]} {[%emt 00:06:34]} 18. Rf1 {[%clk 00:59:20]} {[%emt 00:03:45]} N8d7
{[%clk 00:23:19]} {[%emt 00:05:23]} 19. Nd2 {[%clk 00:41:13]} {[%emt 00:18:37]}
Bxe3 {[%clk 00:17:36]} {[%emt 00:06:13]} 20. Rxf7 {[%clk 00:40:29]} {[%emt
00:01:14]} Qxf7 {[%clk 00:18:00]} {[%emt 00:00:07]} 21. Qxe3 {[%clk 00:40:53]}
{[%emt 00:00:05]} Qf6 {[%clk 00:13:11]} {[%emt 00:05:20]} 22. Kc2 {[%clk
00:37:01]} {[%emt 00:04:21]} Qe5 {[%clk 00:12:25]} {[%emt 00:01:17]} 23. Qxe5
{[%clk 00:36:08]} {[%emt 00:01:23]} Nxe5 {[%clk 00:12:51]} {[%emt 00:00:05]} 24.
b3 {[%clk 00:35:50]} {[%emt 00:00:47]} e6 {[%clk 00:12:09]} {[%emt 00:01:12]}
25. Nf3 {[%clk 00:29:41]} {[%emt 00:06:38]} exd5 {[%clk 00:08:43]} {[%emt
00:03:56]} 26. cxd5 {[%clk 00:28:31]} {[%emt 00:01:41]} Nbd7 {[%clk 00:05:48]}
{[%emt 00:03:24]} 27. Nxe5 {[%clk 00:26:01]} {[%emt 00:03:00]} Nxe5 {[%clk
00:06:14]} {[%emt 00:00:04]} 28. Re1 {[%clk 00:25:35]} {[%emt 00:00:55]} Nd7
{[%clk 00:01:43]} {[%emt 00:05:02]} 29. Bb5 {[%clk 00:22:28]} {[%emt 00:03:37]}
Rd8 {[%clk 00:00:49]} {[%emt 00:01:25]} 30. Re7 {[%clk 00:19:29]} {[%emt
00:03:28]} Nf6 {[%clk 00:01:06]} {[%emt 00:00:13]} 31. Rxb7 {[%clk 00:19:32]}
{[%emt 00:00:28]} Nxd5 {[%clk 00:01:21]} {[%emt 00:00:15]} 32. Bc4 {[%clk
00:15:52]} {[%emt 00:04:09]} a5 {[%clk 00:01:22]} {[%emt 00:00:29]} 33. Rb5
{[%clk 00:14:47]} {[%emt 00:01:35]} Kg7 {[%clk 00:01:46]} {[%emt 00:00:06]} 34.
Bxd5 {[%clk 00:14:17]} {[%emt 00:01:00]} Rxd5 {[%clk 00:02:11]} {[%emt
00:00:06]} 35. Rxa5 {[%clk 00:14:37]} {[%emt 00:00:09]} Rg5 {[%clk 00:02:10]}
{[%emt 00:00:32]} 36. g4 {[%clk 00:12:37]} {[%emt 00:02:30]} hxg4 {[%clk
00:02:28]} {[%emt 00:00:12]} 37. hxg4 {[%clk 00:13:05]} {[%emt 00:00:02]} Rxg4
{[%clk 00:02:39]} {[%emt 00:00:19]} 38. Kc3 {[%clk 00:12:54]} {[%emt 00:00:40]}
Rg2 {[%clk 00:01:05]} {[%emt 00:02:04]} 39. a4 {[%clk 00:12:59]} {[%emt
00:00:25]} g5 {[%clk 00:01:23]} {[%emt 00:00:13]} 40. Rxc5 {[%clk 00:13:06]}
{[%emt 00:00:23]} g4 {[%clk 00:01:39]} {[%emt 00:00:14]} 41. a5 {[%clk
00:11:46]} {[%emt 00:01:49]} g3 {[%clk 00:01:47]} {[%emt 00:00:22]} 42. a6
{[%clk 00:10:37]} {[%emt 00:01:40]} Ra2 {[%clk 00:01:17]} {[%emt 00:01:00]} 43.
Rg5+ {[%clk 00:10:52]} {[%emt 00:00:13]} Kf6 {[%clk 00:01:24]} {[%emt
00:00:24]} 44. Rxg3 {[%clk 00:11:05]} {[%emt 00:00:17]} Rxa6 {[%clk 00:01:46]}
{[%emt 00:00:09]} 45. Re3 {[%clk 00:11:19]} {[%emt 00:00:14]} Ra1 {[%clk
00:01:05]} {[%emt 00:01:13]} 46. Kc4 {[%clk 00:11:20]} {[%emt 00:00:29]} Rc1+
{[%clk 00:01:15]} {[%emt 00:00:19]} 47. Kb5 {[%clk 00:11:47]} {[%emt 00:00:02]}
Rb1 {[%clk 00:01:19]} {[%emt 00:00:27]} 48. b4 {[%clk 00:12:16]} Rb2 {[%clk
00:01:42]} {[%emt 00:00:07]} 49. Kc5 {[%clk 00:12:40]} {[%emt 00:00:07]} 1-0

[Event "The Schackveckan 2023: Göteborg open"]
[Site "Göteborgs schackcentrum, Vegagatan 20, Gothenburg, Sweden"]
[Date "2023.08.13"]
[Round "7.16"]
[White "Johansson, Jan"]
[Black "Eldh, Hjalmar"]
[Result "0-1"]
[TimeControl "15 minutes + 5 seconds per move from move one (Round 1 - 4) / 90 minutes + 30 seconds per move from move one (Round 5 - 8)"]
[WhiteFideId "1747568"]
[BlackFideId "1767968"]
[WhiteElo "1694"]
[BlackElo "1738"]

1. d4 {[%clk 01:30:57]} {[%emt 00:00:02]} Nf6 {[%clk 01:27:52]} {[%emt
00:03:03]} 2. Bf4 {[%clk 01:28:02]} {[%emt 00:03:31]} g6 {[%clk 01:27:52]}
{[%emt 00:00:30]} 3. Nc3 {[%clk 01:27:31]} {[%emt 00:01:01]} d5 {[%clk
01:28:09]} {[%emt 00:00:13]} 4. Qd2 {[%clk 01:26:51]} {[%emt 00:01:09]} Bg7
{[%clk 01:27:29]} {[%emt 00:01:10]} 5. Nf3 {[%clk 01:26:44]} {[%emt 00:00:37]}
Bf5 {[%clk 01:26:25]} {[%emt 00:01:33]} 6. h3 {[%clk 01:25:59]} {[%emt
00:01:16]} c6 {[%clk 01:23:55]} {[%emt 00:03:00]} 7. g4 {[%clk 01:25:08]}
{[%emt 00:01:21]} Ne4 {[%clk 01:23:50]} {[%emt 00:00:35]} 8. Nxe4 {[%clk
01:24:41]} {[%emt 00:00:58]} Bxe4 {[%clk 01:24:15]} {[%emt 00:00:04]} 9. Bh6
{[%clk 01:22:37]} {[%emt 00:02:35]} Bxh6 {[%clk 01:22:29]} {[%emt 00:02:16]} 10.
Qxh6 {[%clk 01:23:00]} {[%emt 00:00:06]} Qa5+ {[%clk 01:22:30]} {[%emt
00:00:28]} 11. c3 {[%clk 01:23:03]} {[%emt 00:00:29]} Nd7 {[%clk 01:21:31]}
{[%emt 00:01:29]} 12. Rg1 {[%clk 01:19:09]} {[%emt 00:04:23]} Bxf3 {[%clk
01:19:33]} {[%emt 00:02:29]} 13. exf3 {[%clk 01:19:19]} {[%emt 00:00:20]} O-O-O
{[%clk 01:19:53]} {[%emt 00:00:10]} 14. Qe3 {[%clk 01:15:17]} {[%emt 00:04:32]}
e5 {[%clk 01:18:33]} {[%emt 00:01:49]} 15. f4 {[%clk 01:14:16]} {[%emt
00:01:32]} exd4 {[%clk 01:18:33]} {[%emt 00:00:29]} 16. Qxd4 {[%clk 01:14:17]}
{[%emt 00:00:31]} Rhe8+ {[%clk 01:18:36]} {[%emt 00:00:27]} 17. Kd2 {[%clk
01:14:01]} {[%emt 00:00:45]} Re4 {[%clk 01:18:35]} {[%emt 00:00:28]} 18. Qd3
{[%clk 01:07:53]} {[%emt 00:06:41]} Nc5 {[%clk 01:15:44]} {[%emt 00:03:20]} 19.
Qg3 {[%clk 01:07:46]} {[%emt 00:00:38]} 0-1

[Event "The Schackveckan 2023: Göteborg open"]
[Site "Göteborgs schackcentrum, Vegagatan 20, Gothenburg, Sweden"]
[Date "2023.08.13"]
[Round "7.17"]
[White "Al Saab, Ranny"]
[Black "Hallberg, Kristjan"]
[Result "1-0"]
[TimeControl "15 minutes + 5 seconds per move from move one (Round 1 - 4) / 90 minutes + 30 seconds per move from move one (Round 5 - 8)"]
[WhiteFideId "1768360"]
[BlackFideId "1717499"]
[WhiteElo "1598"]
[BlackElo "1592"]

1. e4 {[%clk 01:30:53]} {[%emt 00:00:07]} c5 {[%clk 01:29:28]} {[%emt
00:01:31]} 2. Nf3 {[%clk 01:31:21]} {[%emt 00:00:02]} Nc6 {[%clk 01:29:48]}
{[%emt 00:00:11]} 3. d4 {[%clk 01:31:49]} cxd4 {[%clk 01:30:04]} {[%emt
00:00:15]} 4. Nxd4 {[%clk 01:32:19]} Nf6 {[%emt 00:00:28]} 5. Nc3 {[%emt
00:00:04]} e5 {[%clk 01:29:36]} {[%emt 00:00:26]} 6. Nf3 {[%clk 01:32:43]}
{[%emt 00:00:06]} Bb4 {[%clk 01:29:15]} {[%emt 00:00:52]} 7. Bd3 {[%clk
01:30:32]} {[%emt 00:02:40]} d5 {[%clk 01:27:12]} {[%emt 00:02:30]} 8. O-O
{[%clk 01:24:35]} {[%emt 00:06:31]} Bxc3 {[%clk 01:26:47]} {[%emt 00:00:45]} 9.
exd5 {[%clk 01:23:12]} {[%emt 00:02:02]} Qxd5 {[%clk 01:23:53]} {[%emt
00:03:23]} 10. bxc3 {[%clk 01:22:52]} {[%emt 00:00:51]} e4 {[%clk 01:21:51]}
{[%emt 00:02:32]} 11. Bxe4 {[%clk 01:23:09]} {[%emt 00:00:14]} Qxd1 {[%clk
01:21:46]} {[%emt 00:00:23]} 12. Bxc6+ {[%clk 01:23:35]} {[%emt 00:00:16]} bxc6
{[%clk 01:20:31]} {[%emt 00:01:45]} 13. Rxd1 {[%clk 01:23:59]} {[%emt
00:00:06]} Bg4 {[%clk 01:19:41]} {[%emt 00:01:18]} 14. Re1+ {[%clk 01:24:01]}
{[%emt 00:00:29]} Kd8 {[%clk 01:18:22]} {[%emt 00:01:40]} 15. Ne5 {[%clk
01:23:37]} {[%emt 00:01:02]} Be6 {[%clk 01:16:50]} {[%emt 00:02:02]} 16. Nxc6+
{[%clk 01:23:08]} {[%emt 00:01:00]} Kc7 {[%clk 01:16:19]} {[%emt 00:01:00]} 17.
Nd4 {[%clk 01:23:10]} {[%emt 00:00:26]} Bc4 {[%clk 01:13:25]} {[%emt 00:03:26]}
18. Bf4+ {[%clk 01:23:17]} {[%emt 00:00:24]} Kb7 {[%clk 01:12:51]} {[%emt
00:01:03]} 19. Nb3 {[%clk 01:17:44]} {[%emt 00:06:01]} Ka6 {[%clk 01:07:55]}
{[%emt 00:05:29]} 20. Rab1 {[%clk 01:16:52]} {[%emt 00:01:23]} Rhe8 {[%clk
01:01:15]} {[%emt 00:07:07]} 21. Nc5+ {[%clk 01:17:05]} {[%emt 00:00:20]} 1-0

[Event "The Schackveckan 2023: Göteborg open"]
[Site "Göteborgs schackcentrum, Vegagatan 20, Gothenburg, Sweden"]
[Date "2023.08.13"]
[Round "8.1"]
[White "Ustianovich, Nazar"]
[Black "Eriksson, Kristian"]
[Result "1-0"]
[TimeControl "15 minutes + 5 seconds per move from move one (Round 1 - 4) / 90 minutes + 30 seconds per move from move one (Round 5 - 8)"]
[WhiteTitle "FM"]
[WhiteFideId "14109778"]
[BlackFideId "1705172"]
[WhiteElo "2314"]
[BlackElo "2057"]

1. d4 {[%clk 01:30:22]} {[%emt 00:00:37]} Nf6 {[%clk 01:30:44]} {[%emt
00:00:16]} 2. c4 {[%clk 01:30:40]} {[%emt 00:00:13]} e6 {[%clk 01:31:04]}
{[%emt 00:00:09]} 3. g3 {[%clk 01:30:40]} {[%emt 00:00:31]} d5 {[%clk
01:30:50]} {[%emt 00:00:45]} 4. Bg2 {[%clk 01:31:06]} {[%emt 00:00:04]} Be7
{[%clk 01:31:02]} {[%emt 00:00:16]} 5. Nf3 {[%clk 01:31:26]} {[%emt 00:00:11]}
O-O {[%clk 01:31:10]} {[%emt 00:00:21]} 6. O-O {[%clk 01:31:51]} {[%emt
00:00:06]} c6 {[%clk 01:31:11]} {[%emt 00:00:30]} 7. Nc3 {[%clk 01:31:52]}
{[%emt 00:00:28]} Nbd7 {[%clk 01:30:03]} {[%emt 00:01:38]} 8. Qd3 {[%clk
01:31:56]} {[%emt 00:00:27]} a5 {[%clk 01:29:01]} {[%emt 00:01:31]} 9. e4
{[%clk 01:32:03]} {[%emt 00:00:23]} dxe4 {[%clk 01:28:13]} {[%emt 00:01:18]} 10.
Nxe4 {[%clk 01:32:30]} {[%emt 00:00:03]} Nxe4 {[%clk 01:25:58]} {[%emt
00:02:45]} 11. Qxe4 {[%clk 01:32:47]} {[%emt 00:00:14]} Qb6 {[%clk 01:25:20]}
{[%emt 00:01:06]} 12. c5 {[%clk 01:31:58]} {[%emt 00:01:20]} Qd8 {[%clk
01:23:36]} {[%emt 00:02:14]} 13. Re1 {[%clk 01:31:38]} {[%emt 00:00:49]} Nf6
{[%clk 01:22:34]} {[%emt 00:01:33]} 14. Qc2 {[%clk 01:31:44]} {[%emt 00:00:23]}
Nd5 {[%clk 01:20:11]} {[%emt 00:02:53]} 15. h4 {[%clk 01:31:19]} {[%emt
00:00:56]} Bd7 {[%clk 01:18:49]} {[%emt 00:01:52]} 16. Ne5 {[%clk 01:29:28]}
{[%emt 00:02:21]} Be8 {[%clk 01:14:14]} {[%emt 00:05:05]} 17. Nc4 {[%clk
01:29:35]} {[%emt 00:00:24]} Bf6 {[%clk 01:05:31]} {[%emt 00:09:12]} 18. Rd1
{[%clk 01:27:12]} {[%emt 00:02:53]} b5 {[%clk 01:00:52]} {[%emt 00:05:09]} 19.
cxb6 {[%clk 01:25:36]} {[%emt 00:02:06]} Nxb6 {[%clk 01:00:55]} {[%emt
00:00:27]} 20. Ne5 {[%clk 01:26:01]} {[%emt 00:00:06]} Bxe5 {[%clk 00:59:46]}
{[%emt 00:01:38]} 21. dxe5 {[%clk 01:26:28]} {[%emt 00:00:03]} Nd5 {[%clk
00:59:51]} {[%emt 00:00:24]} 22. Be4 {[%clk 01:26:05]} {[%emt 00:00:54]} h6
{[%clk 00:58:45]} {[%emt 00:01:36]} 23. b3 {[%clk 01:24:16]} {[%emt 00:02:19]}
Bd7 {[%clk 00:58:23]} {[%emt 00:00:51]} 24. Ba3 {[%clk 01:23:24]} {[%emt
00:01:23]} Re8 {[%clk 00:58:08]} {[%emt 00:00:45]} 25. Rac1 {[%clk 01:18:15]}
{[%emt 00:05:39]} Qb6 {[%clk 00:56:32]} {[%emt 00:02:06]} 26. Bc5 {[%clk
01:18:33]} {[%emt 00:00:12]} Qb7 {[%clk 00:55:49]} {[%emt 00:01:13]} 27. Qd2
{[%clk 01:18:49]} {[%emt 00:00:14]} Red8 {[%clk 00:54:07]} {[%emt 00:02:12]} 28.
Bb1 {[%clk 01:18:01]} {[%emt 00:01:18]} Be8 {[%clk 00:49:46]} {[%emt 00:04:50]}
29. Qc2 {[%clk 01:17:53]} {[%emt 00:00:39]} g6 {[%clk 00:47:59]} {[%emt
00:02:17]} 30. h5 {[%clk 01:18:07]} {[%emt 00:00:16]} Kg7 {[%clk 00:47:16]}
{[%emt 00:01:12]} 31. Qe2 {[%clk 01:16:50]} {[%emt 00:01:39]} Rd7 {[%clk
00:41:54]} {[%emt 00:06:00]} 32. Qf3 {[%clk 01:16:45]} {[%emt 00:00:33]} Rad8
{[%clk 00:41:19]} {[%emt 00:01:07]} 33. Rd4 {[%clk 01:08:53]} {[%emt 00:08:22]}
f5 {[%clk 00:29:09]} {[%emt 00:12:40]} 34. exf6+ {[%clk 01:08:24]} {[%emt
00:01:01]} Nxf6 {[%clk 00:29:07]} {[%emt 00:00:31]} 35. Bf8+ {[%clk 01:04:29]}
{[%emt 00:04:25]} Kxf8 {[%clk 00:29:06]} {[%emt 00:00:31]} 36. Qxf6+ {[%clk
01:04:53]} {[%emt 00:00:06]} Kg8 {[%clk 00:28:41]} {[%emt 00:00:54]} 37. Rxd7
{[%clk 01:02:33]} {[%emt 00:02:50]} Qxd7 {[%clk 00:28:09]} {[%emt 00:01:03]} 38.
Bxg6 {[%clk 01:02:56]} {[%emt 00:00:07]} 1-0